[Event "Grand Prix Romania 1st Stage 2024"]
[Site "Bucuresti"]
[Date "2024.03.24"]
[Round "7.30"]
[White "Prelipcean, Eric-Matei"]
[Black "Grigore, George-Gabriel"]
[Result "0-1"]
[ECO "A48"]
[WhiteElo "2103"]
[BlackElo "2423"]
[Annotator "TA"]
[PlyCount "90"]
[EventDate "2024.03.20"]
[EventType "swiss"]
[EventCountry "ROU"]
[SourceTitle "playchess.com"]
[Source "ChessBase"]
[SourceQuality "1"]
[TimeControl "900+5"]

{[%evp 19,90,0,0,0,0,-6,0,0,0,0,0,0,19,-62,-30,-27,0,-3,-3,-7,0,0,0,-80,-73,-258,-257,-426,-401,-402,-352,-358,-345,-337,-327,-356,-365,-341,-305,-476,-424,-426,-420,-601,-612,-572,-560,-588,-555,-1088,-1075,-1061,-1043,-1137,-1104,-6259,-6063,-29992,-29993,-29994,-785,-825,-668,-827,-812,-822,-805,-1142,-1093,-1564,-1896,-1550,-1468]} 1. d4 {[%emt 0:00:02]} Nf6 {[%emt 0:00:04]} 2. Nf3 {[%emt 0:00:02]} g6 {[%emt 0:00:02]} 3. Bg5 {[%emt 0:00:02]} Bg7 {[%emt 0:00:02]} 4. Nbd2 {[%emt 0:00:01]} d6 {[%emt 0:00:06]} 5. e4 {[%emt 0:00:10]} O-O {[%emt 0:00:04]} 6. c3 {[%emt 0:00:02]} c5 {[%emt 0:00:02]} 7. dxc5 {[%emt 0:00:03]} dxc5 {[%emt 0:00:03]} 8. Be2 {[%emt 0:00:01]} Nc6 {[%emt 0:00:03]} 9. O-O {[%emt 0:00:07]} Qc7 {[%emt 0:00:03]} 10. Qc2 {[%emt 0:00:02]} b6 {[%emt 0:00:48]} 11. Nc4 {[%emt 0:00:16]} h6 {[%emt 0:00:16]} 12. Bh4 {[%emt 0:00:03]} Nh5 {[%emt 0:00:10]} 13. Rfe1 {[%emt 0:00:14] The position is equal.} Bb7 {[%emt 0:01:09]} 14. Nfd2 {[%emt 0:00:24]} Nf4 {[%emt 0:00:13]} 15. Bf1 {[%emt 0:00:17]} Rad8 {[%emt 0:00:38]} 16. f3 {[%emt 0:00:20]} (16. Bg3 $11) 16... g5 {[%emt 0:01:13] Black is much more active.} 17. Bf2 {[%emt 0:00:05]} e6 {[%emt 0:00:35]} 18. a4 {[%emt 0:00:22]} Rd7 {[%emt 0:00:05]} 19. a5 {[%emt 0:01:34]} Rfd8 {[%emt 0:00:22]} 20. axb6 {[%emt 0:02:07]} axb6 {[%emt 0:00:02]} 21. Nb3 {[%emt 0:00:10] [#]} (21. Red1 $1 $11 {keeps the balance.}) 21... b5 $1 $36 {[%emt 0:02:57][%mdl 2048] White is under strong pressure.} 22. Nca5 {[%emt 0:00:17] This costs White the game.} (22. Nxc5 $17 {only move.} bxc4 23. Nxd7 Rxd7 (23... Qxd7 24. Bxc4 Qc7 25. Reb1 $17) 24. Red1) 22... c4 $19 {[%emt 0:00:54]} 23. Bxc4 {[%emt 0:00:21]} (23. Nxb7 {keeps fighting.} cxb3 (23... Qxb7 $2 24. Nc5 $18) 24. Qxb3 Qxb7 25. Qxb5) 23... bxc4 {[%emt 0:00:09]} 24. Nxc4 {[%emt 0:00:02]} Nd3 {[%emt 0:00:09]} 25. Bb6 {[%emt 0:00:33]} Nxe1 {[%emt 0:00:12]} 26. Rxe1 {[%emt 0:00:01] [#]} Qb8 {[%emt 0:00:42]} 27. Bxd8 {[%emt 0:00:04]} (27. Nc5 Ne5) 27... Rxd8 {[%emt 0:00:09]} (27... Nxd8 28. Nc5 Qa7 29. Qf2 $19) 28. Nc5 {[%emt 0:00:02]} Ne5 {[%emt 0:00:53]} 29. Na5 {[%emt 0:00:14]} (29. Nxb7 {was necessary.} Qa7+ (29... Qxb7 $2 30. Nxe5 Bxe5 31. g3 $19) (29... Nxc4 30. Nxd8 Qxd8 31. Kh1 $15) 30. Kf1 Qxb7 31. Nxe5 Bxe5 32. g3) 29... Ba8 {[%emt 0:00:28] ...Qb6 would now be deadly.} 30. b4 {[%emt 0:00:05]} g4 {[%emt 0:00:18]} 31. Re3 {[%emt 0:01:53]} (31. Rf1 $142) 31... gxf3 {[%emt 0:00:17]} 32. gxf3 {[%emt 0:00:03]} Ng6 {[%emt 0:00:25] Threatens to win with ...Qf4.} 33. Rd3 {[%emt 0:00:28]} Nf4 {[%emt 0:00:14]} 34. Rd7 {[%emt 0:00:20]} Rxd7 {[%emt 0:00:23]} 35. Nxd7 {[%emt 0:00:01]} Qc7 {[%emt 0:00:21]} 36. Nc5 {[%emt 0:00:07] [#]} Bxc3 $1 {[%emt 0:00:21][%mdl 512]} 37. Ncb3 {[%emt 0:00:28]} (37. Qb1 Qe5) 37... Qb6+ {[%emt 0:00:16]} 38. Kh1 {[%emt 0:00:33]} Qe3 {[%emt 0:00:26][%cal Re3e1]} 39. Qd1 {[%emt 0:00:03] [#]} Bxe4 {[%emt 0:00:13]} 40. Qg1+ {[%emt 0:00:20] Black is clearly winning.} Qxg1+ {[%emt 0:00:08]} 41. Kxg1 {[%emt 0:00:02]} Bxf3 {[%emt 0:00:16]} 42. b5 {[%emt 0:00:01]} Nd5 {[%emt 0:00:16]} 43. Kf2 {[%emt 0:00:14]} Bd1 {[%emt 0:00:06] Strongly threatening ...e5.} 44. h4 {[%emt 0:00:10]} Bxa5 {[%emt 0:00:12]} 45. Nxa5 {[%emt 0:00:02]} Ba4 {[%emt 0:00:02] Weighted Error Value: White=1.12/Black=0.20 (precise) .  Loses game:     	White=1     	---        Mistake:       	White=5     	---        Inaccurate:     	White=1     	Black=1      OK:         	White=7     	Black=9      Best:        	---       	Black=1      Strong:       	---       	Black=1} 0-1

[Event "Grand Prix Romania 1st Stage 2024"]
[Site "Bucuresti"]
[Date "2024.03.24"]
[Round "7.31"]
[White "Vasilescu, Lucian-Mihail"]
[Black "Sofronie, Iulian"]
[Result "1-0"]
[ECO "A80"]
[WhiteElo "2116"]
[BlackElo "2395"]
[Annotator "TA"]
[PlyCount "135"]
[EventDate "2024.03.20"]
[EventType "swiss"]
[EventCountry "ROU"]
[SourceTitle "playchess.com"]
[Source "ChessBase"]
[SourceQuality "1"]
[TimeControl "900+5"]

{[%evp 9,135,20,16,11,16,-6,25,1,9,0,1,-17,-6,-29,-6,-23,-11,-18,-6,-11,0,0,0,-37,-5,-41,-32,-95,-88,-92,-62,-133,-116,-127,-84,-218,-131,-123,-140,-163,-137,-282,-245,-254,-130,-238,-22,-9,-7,-26,17,-91,-70,-108,-96,-97,-102,-102,-87,-100,-62,-207,0,0,0,0,0,0,0,-12,0,0,0,-173,0,0,1561,1565,1545,1523,1523,1449,1188,727,712,705,548,-12,-12,-12,-12,-12,-12,-12,-8,-8,12795,11925,29978,29979,29979,29980,29980,29981,29981,29982,29982,29983,29980,29981,29984,29985,29988,29989,29985,29986,29984,29983,29983,29984,29991,29992,29992,29993,29993,29994,29994,29995]} 1. d4 {[%emt 0:00:01]} e6 {[%emt 0:00:04]} 2. Nf3 {[%emt 0:00:10]} f5 {[%emt 0:00:02]} 3. Nbd2 {[%emt 0:00:19]} Nf6 {[%emt 0:00:04]} 4. e3 {[%emt 0:00:02]} b6 {[%emt 0:00:02]} 5. Bd3 {[%emt 0:00:07]} Bb7 {[%emt 0:00:04]} 6. O-O {[%emt 0:00:04]} Be7 {[%emt 0:00:31]} 7. Qe2 {[%emt 0:00:41]} d5 {[%emt 0:00:08]} 8. Ne5 {[%emt 0:00:14] White has an edge.} O-O {[%emt 0:00:02]} 9. f4 {[%emt 0:00:25]} c5 {[%emt 0:00:07]} 10. c3 {[%emt 0:00:01]} Nc6 {[%emt 0:00:20]} 11. Ndf3 {[%emt 0:00:17]} Ne4 {[%emt 0:00:07]} 12. Bd2 {[%emt 0:00:31][%cal Bc1d2,Bd2e1,Be1h4][%mdl 32]} Bf6 {[%emt 0:00:10]} 13. Rfd1 {[%emt 0:00:45]} a5 {[%emt 0:01:45]} 14. Be1 {[%emt 0:00:03]} Bxe5 {[%emt 0:00:17]} 15. dxe5 {[%emt 0:00:27]} Qc8 {[%emt 0:00:22]} 16. Bh4 {[%emt 0:00:47]} h6 {[%emt 0:00:10]} 17. c4 {[%emt 0:00:31]} Nb4 {[%emt 0:00:13]} 18. Bxe4 {[%emt 0:01:05]} (18. cxd5 $15 Nxd3 (18... Nxd5 19. Rac1 $11) (18... exd5 19. Bb1 $14) 19. Qxd3 Bxd5 20. Nd2) 18... fxe4 $17 {[%emt 0:00:11]} (18... dxe4 $6 19. Ne1 $14) 19. Ne1 {[%emt 0:00:10]} dxc4 {[%emt 0:00:48]} 20. Rd6 {[%emt 0:01:52]} (20. Qxc4 $15 Bd5 21. Qb5) 20... Bd5 {[%emt 0:00:14]} 21. Rxb6 {[%emt 0:00:19]} Rf7 {[%emt 0:01:02]} 22. Qg4 {[%emt 0:01:39]} (22. Nc2 $17) 22... Rb8 {[%emt 0:00:26]} 23. Rd6 {[%emt 0:00:15]} Qe8 {[%emt 0:01:20]} 24. Rd1 {[%emt 0:01:56]} Nd3 {[%emt 0:00:40]} (24... Nxa2 25. R1xd5 exd5 26. Rxh6 $16) 25. Nc2 {[%emt 0:00:08]} (25. a3 $17 {was necessary.}) 25... Kh7 $19 {[%emt 0:00:47]} (25... Rxb2 26. Rd8 $19) 26. Na3 {[%emt 0:01:24]} Rf8 {[%emt 0:00:17]} (26... Qa4 $19 27. Rxd5 exd5) 27. Rf1 {[%emt 0:00:23]} (27. Nb1 $17) 27... Qg6 $2 {[%emt 0:00:46]} ({Black should try} 27... Nxe5 $19 28. Qg3 (28. fxe5 $2 Rxf1+ 29. Kxf1 Rxb2 $19) 28... Nd3) 28. Qxg6+ $11 {[%emt 0:00:42]} Kxg6 {[%emt 0:00:02]} 29. g4 {[%emt 0:00:01] Strongly threatening f5+.} Nxe5 {[%emt 0:01:09]} 30. fxe5 {[%emt 0:00:23]} (30. f5+ $1 $11 {was the only way to keep the balance.} Kh7 31. fxe6 Rxf1+ 32. Kxf1 Nxg4 33. Ke1 Nxe3 34. Kd2 Nf1+ (34... Rxb2+ $2 35. Kxe3 Bxe6 36. Rxe6 $18) (34... Ng2 35. Rxd5 Nxh4 36. Ke3 $11) 35. Kc1 (35. Ke2 Rxb2+ 36. Kxf1 Bxe6 $18)) 30... Rxf1+ $17 {[%emt 0:00:02]} 31. Kxf1 {[%emt 0:00:01]} Rxb2 {[%emt 0:00:01]} 32. Be1 {[%emt 0:00:42] Inhibits c3.} c3 $1 {[%emt 0:00:37]} 33. Bxc3 {[%emt 0:00:09]} Rxa2 {[%emt 0:00:02]} 34. Nb1 {[%emt 0:00:17]} a4 {[%emt 0:00:40][%cal Oa2c2][%mdl 1024] Hoping for ...Rc2! Black has strong compensation.} 35. h4 {[%emt 0:00:22]} (35. Be1 $15) 35... Rh2 $2 {[%emt 0:00:28]} (35... Rc2 $1 $19 {[%cal Rc2c1]} 36. Bd2 (36. Rb6 $2 a3 $19) 36... a3 37. Nxa3 Rxd2) 36. Be1 {[%emt 0:00:18]} Rb2 {[%emt 0:00:35]} (36... Rh1+ 37. Kf2 $16) 37. Nc3 {[%emt 0:00:02]} Bc4+ {[%emt 0:00:02]} 38. Kg1 {[%emt 0:00:01]} a3 {[%emt 0:00:02]} 39. Rd7 {[%emt 0:00:14]} a2 {[%emt 0:00:12]} 40. h5+ {[%emt 0:00:01]} (40. Nxe4 h5 (40... a1=B 41. h5+ Kh7 42. Nf6+ Kh8 43. Rd8#) 41. Ra7 (41. Nxc5 a1=R 42. gxh5+ Kh6) 41... Rb1 $19) 40... Kh7 {[%emt 0:00:01]} 41. Ra7 $2 {[%emt 0:00:01]} (41. Nxe4 $11 {and White stays safe.} Kg8 (41... a1=Q 42. Nf6+ Kh8 43. Rd8#) 42. Rd8+ (42. Nxc5 a1=Q 43. Rd8+ Kh7) 42... Kh7 43. Rd7) 41... Rc2 $2 {[%emt 0:00:07]} (41... Rb1 $19 42. Rxa2 Rxe1+ 43. Kf2 Rf1+ 44. Kg2 Rf8) 42. Nxe4 $11 {[%emt 0:00:08] Nf6+ would kill now.} Bd5 $2 {[%emt 0:00:13][%mdl 8192]} (42... Kg8 $11 43. Ra8+ (43. Nxc5 $2 Rc1 $19) 43... Kh7) 43. Nf6+ $18 {[%emt 0:00:03]} Kh8 {[%emt 0:00:02]} 44. Nxd5 {[%emt 0:00:14]} exd5 {[%emt 0:00:02][%mdl 4096] Endgame. KRB-KR} 45. e6 {[%emt 0:00:02] White wants to mate with e7.} Re2 {[%emt 0:00:01]} 46. Bc3 {[%emt 0:00:07]} Rxe3 {[%emt 0:00:12]} 47. Bxg7+ {[%emt 0:00:09]} Kg8 {[%emt 0:00:02]} 48. Bxh6 $2 {[%emt 0:00:04]} ({White should play} 48. e7 $18) 48... Re1+ $11 {[%emt 0:00:02]} 49. Kf2 $1 {[%emt 0:00:03]} (49. Kg2 $2 a1=Q 50. Rxa1 Rxa1 $19) 49... a1=Q {[%emt 0:00:01]} 50. Rxa1 {[%emt 0:00:03]} Rxa1 {[%emt 0:00:01] KR-KB} 51. e7 $1 {[%emt 0:00:06]} Kf7 {[%emt 0:00:02]} 52. Bf8 {[%emt 0:00:07] Black must now prevent h6.} (52. Bg5 $2 Ra6 53. Bf4 Kxe7 $19) 52... Rh1 $2 {[%emt 0:01:26][%mdl 8192]} (52... Ra4 $11 53. Kf3 Re4) 53. h6 $1 $18 {[%emt 0:00:01]} c4 {[%emt 0:00:52] [#]} 54. g5 $1 {[%emt 0:00:05] White mates.} c3 {[%emt 0:00:09] [#]} 55. g6+ $1 {[%emt 0:00:01][%mdl 512]} Ke8 {[%emt 0:00:00]} 56. g7 {[%emt 0:00:28]} c2 {[%emt 0:00:02]} 57. g8=Q {[%emt 0:00:03]} (57. g8=R {gets mated.} c1=Q (57... c1=B 58. Kg2 $14) 58. Bg7+ Kxe7 59. Bf8+ Ke6 (59... Kf7 60. Bd6 Qd2+ 61. Kf3 Rf1+ 62. Kg3 Qf2+ 63. Kg4 Qf3+ 64. Kg5 Rg1+ 65. Bg3 Qxg3+ 66. Kh5 Qh3#) (59... Kf7 {leads to mate.} 60. Rg7+ Kxf8 61. Rg8+ Kxg8 62. h7+ Rxh7 63. Kf3 Rf7+ 64. Ke2 Qb2+ 65. Ke1 d4 66. Kd1 Rf1#)) 57... Rf1+ {[%emt 0:00:03]} 58. Kxf1 {[%emt 0:00:06]} c1=Q+ {[%emt 0:00:02] [#]} 59. Kg2 $1 {[%emt 0:00:04]} Qc2+ {[%emt 0:00:04]} 60. Kh3 {[%emt 0:00:02]} Qf5+ {[%emt 0:00:05]} 61. Qg4 {[%emt 0:00:01]} Qf1+ {[%emt 0:00:02]} 62. Kh4 {[%emt 0:00:02]} Qf6+ {[%emt 0:00:03]} 63. Qg5 {[%emt 0:00:02]} Qf2+ {[%emt 0:00:02]} 64. Kh5 {[%emt 0:00:04]} Qe2+ {[%emt 0:00:02]} 65. Qg4 {[%emt 0:00:02]} Qe5+ {[%emt 0:00:02]} 66. Kg6 {[%emt 0:00:02][%cal Rg4a4]} Qd6+ {[%emt 0:00:07]} 67. Kg7 {[%emt 0:00:05]} Qe5+ {[%emt 0:00:02]} 68. Kg8 {[%emt 0:00:02] Quite a comeback for White.   Weighted Error Value: White=0.44/Black=0.46.  Loses game:     	White=1     	Black=2      Missed win:     	---       	Black=3      Mistake:       	White=7     	Black=1      Inaccurate:     	White=3     	Black=8      OK:         	White=10    	Black=12     Best:        	White=6     	Black=3      Strong:       	White=3     	Black=1} 1-0

[Event "Grand Prix Romania 1st Stage 2024"]
[Site "Bucuresti"]
[Date "2024.03.24"]
[Round "7.32"]
[White "Stoyanov, Tsvetan"]
[Black "Tanasie, Cosmin"]
[Result "1/2-1/2"]
[ECO "B31"]
[WhiteElo "2465"]
[BlackElo "2009"]
[Annotator "TA"]
[PlyCount "94"]
[EventDate "2024.03.20"]
[EventType "swiss"]
[EventCountry "ROU"]
[SourceTitle "playchess.com"]
[Source "ChessBase"]
[SourceQuality "1"]
[TimeControl "900+5"]

{[%evp 15,94,23,18,15,29,0,0,0,0,0,0,0,0,0,0,-14,-8,-10,-2,-16,-10,-37,0,-28,-8,-29,-35,-97,-11,-195,-178,-194,-63,-72,0,-18,-4,-20,0,0,0,0,0,-116,-22,-49,-49,-172,-80,-87,-71,-57,-35,-41,-32,-104,-76,-209,-202,-208,-102,-175,-168,-154,-143,-164,-64,-128,-129,-125,-117,-102,0,0,0,-124,0,0,0,-134,0]} 1. e4 {[%emt 0:00:02]} c5 {[%emt 0:00:01]} 2. Nf3 {[%emt 0:00:02]} Nc6 {[%emt 0:00:01]} 3. Bb5 {[%emt 0:00:07]} g6 {[%emt 0:00:01]} 4. Bxc6 {[%emt 0:00:10]} dxc6 {[%emt 0:00:02]} 5. d3 {[%emt 0:00:05]} Bg7 {[%emt 0:00:01]} 6. h3 {[%emt 0:00:14]} Nh6 {[%emt 0:00:04] B31: Sicilian: 2...Nc6 3 Bb5 g6.} 7. Nc3 {[%emt 0:00:27] 7.0-0 is vanishing.} f6 {[%emt 0:00:06]} 8. Be3 {[%emt 0:02:45]} b6 {[%emt 0:00:02]} 9. a4 {[%emt 0:00:08]} a5 {[%emt 0:00:13]} 10. d4 {[%emt 0:01:57]} cxd4 {[%emt 0:00:08]} 11. Nxd4 {[%emt 0:00:02]} Qc7 $146 {[%emt 0:00:09]} ({Predecessor:} 11... Bd7 12. f4 e5 13. fxe5 fxe5 14. Nf3 Nf7 15. Qd2 Qc7 16. Qf2 Rb8 17. O-O-O O-O {½-½ Kosakowski,J (2318)-Shishkin,V (2448) Baltic Cup 2nd 2018 (7)}) 12. f4 {[%emt 0:00:31]} Nf7 {[%emt 0:01:09]} 13. O-O {[%emt 0:01:29]} e5 {[%emt 0:00:11]} 14. fxe5 {[%emt 0:00:14]} Nxe5 {[%emt 0:00:01]} 15. Qe1 {[%emt 0:00:07]} O-O {[%emt 0:00:56]} 16. Qg3 {[%emt 0:00:07]} Qe7 {[%emt 0:01:38]} 17. Rad1 {[%emt 0:00:08]} Bb7 {[%emt 0:00:55]} 18. Bf4 {[%emt 0:01:48]} Rfe8 {[%emt 0:00:25]} 19. Kh1 {[%emt 0:00:54]} Rad8 {[%emt 0:00:25]} 20. h4 {[%emt 0:00:38]} Qb4 {[%emt 0:02:23]} 21. Nb3 {[%emt 0:01:10]} (21. Nf3 $15) 21... b5 {[%emt 0:00:51]} (21... Rxd1 $17 22. Rxd1 Bc8) 22. Be3 $2 {[%emt 0:01:50]} (22. Ra1 $11 {and White has nothing to worry.}) 22... bxa4 $19 {[%emt 0:02:15]} 23. Nc5 {[%emt 0:00:02]} Bc8 {[%emt 0:00:10]} (23... Qxb2 24. N3xa4 Rxd1 (24... Qxc2 25. Rc1 $11) 25. Nxb2) (23... Rxd1 $19 24. Nxd1 Bc8) 24. N3xa4 {[%emt 0:00:39]} Bg4 {[%emt 0:00:42]} (24... Qb5 $17) 25. Rxd8 {[%emt 0:00:13]} Rxd8 {[%emt 0:00:01]} 26. Bf4 {[%emt 0:00:03]} Rd1 {[%emt 0:00:37]} 27. Rxd1 {[%emt 0:00:44]} Bxd1 {[%emt 0:00:01]} 28. Bxe5 {[%emt 0:00:35]} fxe5 {[%emt 0:00:04]} 29. Qf2 {[%emt 0:00:05]} (29. Kh2 $11 {remains equal.}) 29... Bh6 {[%emt 0:01:08]} (29... Qd4 $17 30. Qg3 Qc4 (30... Bxc2 31. Qh3 $17)) 30. Nc3 {[%emt 0:00:09]} (30. c3 {simplifies} Qc4 31. Nb6 Qe2 32. Qxe2 Bxe2 33. g3) 30... Bxc2 $1 {[%emt 0:00:22]} 31. Nd7 {[%emt 0:00:04]} (31. Qxc2 $15 Qxc5 32. Qb3+ Kh8 33. Qb8+ Bf8 34. h5) 31... Qe7 {[%emt 0:01:32]} (31... Bxe4 $2 32. Nxe4 (32. Nxe5 $2 Bf4 $19) 32... Bg7 33. Nef6+ Kh8 34. Nxe5 $18) (31... Qxb2 $19 {has better winning chances.} 32. Ne2 Bg7 (32... Bxe4 33. Nf6+ Kg7 34. Ne8+ Kh8 35. Qf6+ Kg8 36. Qe7 $11) 33. Nf6+ Kh8) 32. Nf6+ $17 {[%emt 0:00:07]} Kg7 {[%emt 0:00:02]} 33. Ng4 {[%emt 0:00:04]} Bb3 {[%emt 0:00:23]} (33... Bc1 $5 34. h5 (34. Qxc2 $2 Qxh4+ 35. Nh2 Qe1+ $19) 34... Bb3 $15 (34... gxh5 35. Nh2 $11)) 34. Nxh6 {[%emt 0:00:07]} Kxh6 {[%emt 0:00:02]} 35. Ne2 {[%emt 0:00:02]} (35. Qe3+ $15 Kg7 36. h5) 35... Kg7 {[%emt 0:00:08]} 36. Kg1 {[%emt 0:00:04]} (36. Ng1 $17 {might work better.}) 36... Qb4 $19 {[%emt 0:00:09]} 37. Qe3 {[%emt 0:00:09]} Bc4 {[%emt 0:00:08]} (37... Qe1+ $19 {and Black stays clearly on top.} 38. Kh2 Qxh4+ 39. Kg1 Qe1+ 40. Kh2 Qh4+ 41. Kg1 Bf7) 38. Ng3 {[%emt 0:00:04]} (38. Kh2 $17) 38... Qxb2 $19 {[%emt 0:00:06]} 39. Qg5 {[%emt 0:00:04]} Qd4+ {[%emt 0:00:48]} 40. Kh2 {[#]} Kf7 {[%emt 0:00:00]} ({Better is} 40... Qc5 $1 $19 41. h5 a4 42. Nf5+ Kf7) 41. Qh6 {[%emt 0:00:10]} ({White should try} 41. h5 $1 $15) 41... Kg8 $17 {[%emt 0:00:00]} 42. h5 {[%emt 0:00:03]} Qd6 {[%emt 0:00:00]} 43. Qg5 {[%emt 0:00:06]} (43. Nf5 Qf6 (43... gxf5 $2 44. Qxd6 f4 45. Qxe5 $18) 44. Kg1 Bf7 $19) 43... Kf7 {[%emt 0:00:00]} (43... Bf7 $17 {...c5 is the strong threat.} 44. Nf5 Qc7) 44. Qh6 $1 $11 {[%emt 0:00:03]} Kg8 {[%emt 0:00:00]} (44... Kf6 $11) 45. Qg5 $1 $17 {[%emt 0:00:05]} ({Don't blunder} 45. Nf5 $2 Qf6 (45... gxf5 $2 46. Qxd6 f4 47. Qxe5 $18) 46. hxg6 hxg6 $19) 45... Kf7 {[%emt 0:00:01]} (45... Bf7 $17 {aiming for ...Qc7.} 46. Nf5 Qc7) 46. Qh6 $1 $11 {[%emt 0:00:08]} Kg8 {[%emt 0:00:00]} (46... Ke8 $11 47. Qxh7 gxh5) 47. Qg5 $1 $17 {[%emt 0:00:06]} ({Not} 47. Nf5 $2 Qf6 (47... gxf5 $2 {loses.} 48. Qxd6 f4 49. Qxe5 $18) 48. Kg1 Bb5 49. hxg6 hxg6 $19) 47... Kf7 {[%emt 0:00:25]} (47... Bf7 $17 48. Nf5 Qc7) 1/2-1/2

[Event "Grand Prix Romania 1st Stage 2024"]
[Site "Bucuresti"]
[Date "2024.03.24"]
[Round "7.33"]
[White "Puskas, Andras"]
[Black "Vedmediuc, Serghei"]
[Result "0-1"]
[ECO "E73"]
[WhiteElo "2097"]
[BlackElo "2452"]
[Annotator "TA"]
[PlyCount "79"]
[EventDate "2024.03.20"]
[EventType "swiss"]
[EventCountry "ROU"]
[SourceTitle "playchess.com"]
[Source "ChessBase"]
[SourceQuality "1"]
[TimeControl "900+5"]

{[%evp 11,79,26,42,-7,-12,-12,-14,-25,-2,-38,-10,-15,-27,-15,2,-71,-61,-63,-46,-107,-102,-88,-105,-220,-228,-231,-230,-240,-252,-236,-179,-253,-297,-394,-162,-155,77,-90,-56,-133,-135,-137,-132,-135,-142,-150,-131,-167,-168,-144,-96,-92,-70,-79,-56,-136,-104,-127,-128,-152,-133,-129,-128,-173,-165,-242,-231,-328,-309,-487]} 1. d4 {[%emt 0:00:07]} g6 {[%emt 0:00:06]} 2. c4 {[%emt 0:00:03]} Bg7 {[%emt 0:00:01]} 3. Nc3 {[%emt 0:00:04]} d6 {[%emt 0:00:02]} 4. e4 {[%emt 0:00:09]} Nc6 {[%emt 0:00:02]} 5. Be3 {[%emt 0:00:52]} Nf6 {[%emt 0:00:15]} 6. Be2 {[%emt 0:01:03]} O-O {[%emt 0:00:19]} 7. h4 {[%emt 0:02:00]} (7. d5 $14 {feels stronger.} Ne5 8. h3) 7... e5 $11 {[%emt 0:00:06] Black wants to play ...exd4.} 8. d5 {[%emt 0:00:06] [#]} Nd4 {[%emt 0:00:01]} 9. Qd2 {[%emt 0:01:13] The position is equal.} (9. h5 Nxe2) 9... Nxe2 {[%emt 0:00:04]} 10. Qxe2 {[%emt 0:00:05]} Ng4 {[%emt 0:00:08]} 11. Bg5 {[%emt 0:00:14]} f6 {[%emt 0:00:05]} 12. Bd2 {[%emt 0:00:02]} f5 {[%emt 0:00:25]} 13. f3 {[%emt 0:01:10]} (13. h5 $11 {keeps the balance.}) 13... Nf6 $17 {[%emt 0:00:05]} 14. Bg5 {[%emt 0:00:02]} h6 {[%emt 0:01:05]} 15. Bd2 {[%emt 0:00:16]} (15. Bxf6 $15 Qxf6 (15... Bxf6 16. g3 $15) 16. Qe3) 15... a6 {[%emt 0:01:29]} 16. O-O-O {[%emt 0:00:17] [#]} b5 $1 {[%emt 0:00:02]} 17. Nh3 {[%emt 0:00:36]} (17. exf5 $17 {might work better.} gxf5 18. cxb5) (17. a3 Rb8) 17... b4 $19 {[%emt 0:00:09]} 18. Nb1 {[%emt 0:00:51]} fxe4 {[%emt 0:00:03]} 19. Bxb4 {[%emt 0:00:22]} exf3 {[%emt 0:00:26]} 20. gxf3 {[%emt 0:00:01]} e4 {[%emt 0:02:15]} 21. Nd2 {[%emt 0:01:30]} (21. Bc3 $142) 21... exf3 22. Nxf3 {[%emt 0:00:01]} Ng4 {[%emt 0:00:33]} (22... Nh5 $142 23. Qg2 Qe8) 23. Nd4 {[%emt 0:01:59]} Bd7 {[%emt 0:00:45] [#] A strong pair of Bishops.} (23... Qxh4 24. Ne6 Bxe6 25. Qxe6+ Kh8 (25... Kh7 26. Rdg1 $11) 26. Bd2) (23... Ne5 $17 24. Qe4 Bg4 (24... Nxc4 25. Nf4 $15)) 24. Bc3 $2 {[%emt 0:00:36]} (24. Ne6 $1 $16 {[%cal Re6d8] is necessary to keep the advantage.} Qxh4 25. Rdg1) 24... Qe8 {[%emt 0:00:26]} 25. Rde1 {[%emt 0:00:28]} (25. Ne6 $15 Bxe6 26. dxe6) 25... Qxe2 $17 {[%emt 0:00:16]} 26. Rxe2 {[%emt 0:00:01]} Rae8 {[%emt 0:00:31] Wards off Re7} 27. Rxe8 {[%emt 0:00:09]} Rxe8 {[%emt 0:00:02]} ({Not} 27... Bxe8 28. Ne6 Bxc3 29. Nxf8 $16) 28. Kd2 {[%emt 0:01:13]} Re4 {[%emt 0:01:06] Dodges Nf4} 29. Kd3 {[%emt 0:00:23]} Re3+ {[%emt 0:00:04]} 30. Kd2 {[%emt 0:00:01]} Rg3 {[%emt 0:00:02] Black is more active.} (30... Be5 $142 {[%cal Oa6a5]} 31. a3 Rg3) 31. Nf4 {[%emt 0:00:13]} Ne5 {[%emt 0:00:18]} 32. b3 {[%emt 0:00:17]} h5 $36 {[%emt 0:00:25][%mdl 2048] White must now prevent ...Bh6. Black has good play.} (32... Nf3+ $5 33. Nxf3 Bxc3+ 34. Ke3 (34. Kxc3 $2 {loses.} Rxf3+ 35. Nd3 Bf5 $17) 34... Ba5 $17) 33. Nde2 {[%emt 0:00:20]} (33. Kc2 $15) 33... Rg4 {[%emt 0:00:03] Threatens to win with ...Bh6.} 34. Bxe5 {[%emt 0:00:27]} dxe5 {[%emt 0:00:14]} 35. Ne6 {[%emt 0:00:14]} Bxe6 {[%emt 0:01:08]} 36. dxe6 {[%emt 0:00:01]} Bf6 {[%emt 0:00:01]} 37. Rf1 {[%emt 0:00:23]} Bxh4 {[%emt 0:00:05]} 38. Rf7 {[%emt 0:00:26]} (38. Kd3 $142) 38... Bg5+ $19 {[%emt 0:05:08]} 39. Kd3 (39. Ke1 $142) 39... h4 {[%emt 0:00:05]} 40. Rxc7 {[%emt 0:00:10] Weighted Error Value: White=0.43/Black=0.31.  Mistake:       	White=10    	Black=3      Inaccurate:     	White=3     	Black=2      OK:         	White=7     	Black=14     Best:        	White=3     	Black=3      Brilliant:      	---       	Black=1} (40. Rf2 {was worth a try.}) 0-1